[Event "Titled Tuesday Blitz November 08 Late 2022"]
[White "Bortnyk, Olexandr"]
[Black "Hamley, Ryan"]
[WhiteFideId "14120828"]
[BlackFideId "30959497"]
[WhiteElo "2723"]
[BlackElo "2528"]
[Result "1-0"]
[Round "01"]
[TimeControl "180+1"]
[Date "2022.11.08"]
[WhiteClock "0:00:03"]
[BlackClock "0:00:02"]

1. d4 {[%clk 0:02:58]}  Nf6 {[%clk 0:03:00]} 2. Nc3 {[%clk 0:02:57]}  d5 {[%clk 0:02:59]} 3. Bf4 {[%clk 0:02:53]}  c5 {[%clk 0:02:54]} 4. e4 {[%clk 0:02:52]}  dxe4 {[%clk 0:02:48]} 5. dxc5 {[%clk 0:02:51]}  Nbd7 {[%clk 0:02:34]} 6. b4 {[%clk 0:02:32]}  e5 {[%clk 0:02:27]} 7. Be3 {[%clk 0:02:19]}  Be7 {[%clk 0:02:26]} 8. Bc4 {[%clk 0:02:16]}  O-O {[%clk 0:02:23]} 9. h3 {[%clk 0:02:14]}  a5 {[%clk 0:02:23]} 10. a3 {[%clk 0:02:13]}  Qc7 {[%clk 0:02:05]} 11. Nge2 {[%clk 0:02:06]}  b6 {[%clk 0:02:01]} 12. Bd5 {[%clk 0:01:49]}  Bb7 {[%clk 0:01:43]} 13. Nb5 {[%clk 0:01:48]}  Qc8 {[%clk 0:01:38]} 14. Bxb7 {[%clk 0:01:44]}  Qxb7 {[%clk 0:01:39]} 15. Nd6 {[%clk 0:01:40]}  Qc7 {[%clk 0:01:33]} 16. Nf5 {[%clk 0:01:35]}  Rfe8 {[%clk 0:01:28]} 17. Nxe7+ {[%clk 0:01:27]}  Rxe7 {[%clk 0:01:28]} 18. Qd6 {[%clk 0:01:14]}  Qxd6 {[%clk 0:01:28]} 19. cxd6 {[%clk 0:01:15]}  Re6 {[%clk 0:01:29]} 20. Rd1 {[%clk 0:01:14]}  Rc8 {[%clk 0:01:28]} 21. c3 {[%clk 0:00:58]}  Rc6 {[%clk 0:01:23]} 22. O-O {[%clk 0:00:57]}  Rexd6 {[%clk 0:01:23]} 23. Rxd6 {[%clk 0:00:57]}  Rxd6 {[%clk 0:01:23]} 24. c4 {[%clk 0:00:58]}  Rd3 {[%clk 0:01:18]} 25. c5 {[%clk 0:00:57]}  bxc5 {[%clk 0:01:17]} 26. bxc5 {[%clk 0:00:58]}  Nd5 {[%clk 0:01:05]} 27. c6 {[%clk 0:00:54]}  Nf8 {[%clk 0:01:05]} 28. Rb1 {[%clk 0:00:47]}  f5 {[%clk 0:00:54]} 29. Rb8 {[%clk 0:00:44]}  Kf7 {[%clk 0:00:49]} 30. Rb7+ {[%clk 0:00:42]}  Kg6 {[%clk 0:00:40]} 31. c7 {[%clk 0:00:40]}  Nxc7 {[%clk 0:00:40]} 32. Rxc7 {[%clk 0:00:41]}  f4 {[%clk 0:00:40]} 33. Rc6+ {[%clk 0:00:32]}  Kf7 {[%clk 0:00:39]} 34. Bb6 {[%clk 0:00:26]}  Rxa3 {[%clk 0:00:38]} 35. Nc3 {[%clk 0:00:27]}  Ra1+ {[%clk 0:00:19]} 36. Kh2 {[%clk 0:00:27]}  Re1 {[%clk 0:00:20]} 37. Bxa5 {[%clk 0:00:25]}  e3 {[%clk 0:00:19]} 38. fxe3 {[%clk 0:00:24]}  Rxe3 {[%clk 0:00:19]} 39. Rc7+ {[%clk 0:00:22]}  Kg6 {[%clk 0:00:19]} 40. Rc6+ {[%clk 0:00:14]}  Kf7 {[%clk 0:00:19]} 41. Bb6 {[%clk 0:00:14]}  Rd3 {[%clk 0:00:18]} 42. Ne4 {[%clk 0:00:14]}  Ne6 {[%clk 0:00:18]} 43. Nf2 {[%clk 0:00:06]}  Rd2 {[%clk 0:00:17]} 44. Ne4 {[%clk 0:00:06]}  Ra2 {[%clk 0:00:16]} 45. Bg1 {[%clk 0:00:02]}  f3 {[%clk 0:00:16]} 46. Bf2 {[%clk 0:00:03]}  fxg2 {[%clk 0:00:16]} 47. Kxg2 {[%clk 0:00:04]}  Nf4+ {[%clk 0:00:16]} 48. Kf3 {[%clk 0:00:04]}  h6 {[%clk 0:00:16]} 49. h4 {[%clk 0:00:04]}  Ra3+ {[%clk 0:00:16]} 50. Kg4 {[%clk 0:00:05]}  h5+ {[%clk 0:00:13]} 51. Kf5 {[%clk 0:00:05]}  g6+ {[%clk 0:00:13]} 52. Kg5 {[%clk 0:00:03]}  Nh3+ {[%clk 0:00:11]} 53. Kh6 {[%clk 0:00:03]}  Nxf2 {[%clk 0:00:12]} 54. Nxf2 {[%clk 0:00:04]}  Rf3 {[%clk 0:00:12]} 55. Ne4 {[%clk 0:00:05]}  Rf4 {[%clk 0:00:10]} 56. Nd6+ {[%clk 0:00:03]}  Ke7 {[%clk 0:00:10]} 57. Kxg6 {[%clk 0:00:04]}  Rxh4 {[%clk 0:00:10]} 58. Nf5+ {[%clk 0:00:03]}  Kd7 {[%clk 0:00:09]} 59. Rd6+ {[%clk 0:00:04]}  Kc7 {[%clk 0:00:09]} 60. Rd1 {[%clk 0:00:04]}  Rg4+ {[%clk 0:00:09]} 61. Kxh5 {[%clk 0:00:04]}  Rg2 {[%clk 0:00:09]} 62. Rc1+ {[%clk 0:00:04]}  Kb6 {[%clk 0:00:09]} 63. Ne3 {[%clk 0:00:03]}  Rg3 {[%clk 0:00:09]} 64. Nc4+ {[%clk 0:00:03]}  Kb5 {[%clk 0:00:09]} 65. Nxe5 {[%clk 0:00:04]}  Kb4 {[%clk 0:00:09]} 66. Nc6+ {[%clk 0:00:04]}  Kb3 {[%clk 0:00:10]} 67. Nd4+ {[%clk 0:00:04]}  Kb2 {[%clk 0:00:09]} 68. Rc8 {[%clk 0:00:04]}  Rg1 {[%clk 0:00:08]} 69. Rb8+ {[%clk 0:00:04]}  Ka3 {[%clk 0:00:05]} 70. Ne6 {[%clk 0:00:03]}  Rg2 {[%clk 0:00:05]} 71. Ng5 {[%clk 0:00:03]}  Ka4 {[%clk 0:00:05]} 72. Kg6 {[%clk 0:00:03]}  Ka5 {[%clk 0:00:06]} 73. Kf5 {[%clk 0:00:03]}  Ka6 {[%clk 0:00:06]} 74. Ne4 {[%clk 0:00:03]}  Ka7 {[%clk 0:00:06]} 75. Rb1 {[%clk 0:00:04]}  Ka6 {[%clk 0:00:06]} 76. Ke5 {[%clk 0:00:05]}  Re2 {[%clk 0:00:05]} 77. Kd5 {[%clk 0:00:03]}  Rc2 {[%clk 0:00:05]} 78. Nc5+ {[%clk 0:00:03]}  Ka5 {[%clk 0:00:05]} 79. Kc6 {[%clk 0:00:03]}  Rc3 {[%clk 0:00:02]} 80. Rb5# {[%clk 0:00:03]} 1-0


[Site "https://www.chess.com"]

[Event "Titled Tuesday Blitz November 08 Late 2022"]
[White "Brown, Andrew"]
[Black "O`Gorman, Tom"]
[WhiteFideId "3206513"]
[BlackFideId "2508249"]
[WhiteElo "2245"]
[BlackElo "2271"]
[Result "1-0"]
[Round "01"]
[TimeControl "180+1"]
[Date "2022.11.09"]
[WhiteClock "0:00:11"]
[BlackClock "0:00:15"]

1. d4 {[%clk 0:02:59]}  Nf6 {[%clk 0:02:58]} 2. c4 {[%clk 0:02:58]}  g6 {[%clk 0:02:58]} 3. Nc3 {[%clk 0:02:58]}  Bg7 {[%clk 0:02:59]} 4. g3 {[%clk 0:02:57]}  O-O {[%clk 0:02:57]} 5. Bg2 {[%clk 0:02:57]}  d6 {[%clk 0:02:56]} 6. e4 {[%clk 0:02:56]}  Nc6 {[%clk 0:02:49]} 7. Nge2 {[%clk 0:02:56]}  e5 {[%clk 0:02:43]} 8. d5 {[%clk 0:02:54]}  Nd4 {[%clk 0:02:43]} 9. Be3 {[%clk 0:02:47]}  Nxe2 {[%clk 0:01:55]} 10. Qxe2 {[%clk 0:02:46]}  Ng4 {[%clk 0:01:56]} 11. Bd2 {[%clk 0:02:45]}  f5 {[%clk 0:01:56]} 12. h3 {[%clk 0:02:31]}  Nf6 {[%clk 0:01:54]} 13. exf5 {[%clk 0:02:17]}  gxf5 {[%clk 0:01:53]} 14. O-O {[%clk 0:02:17]}  Kh8 {[%clk 0:01:49]} 15. f4 {[%clk 0:02:16]}  Qe7 {[%clk 0:01:43]} 16. Rfe1 {[%clk 0:01:52]}  e4 {[%clk 0:01:40]} 17. Be3 {[%clk 0:01:51]}  Bd7 {[%clk 0:01:38]} 18. Rac1 {[%clk 0:01:47]}  Rg8 {[%clk 0:01:32]} 19. Kh2 {[%clk 0:01:45]}  Be8 {[%clk 0:01:30]} 20. Qf2 {[%clk 0:01:39]}  Bf7 {[%clk 0:01:24]} 21. Bd4 {[%clk 0:01:32]}  Nh5 {[%clk 0:01:13]} 22. Bxe4 {[%clk 0:01:03]}  fxe4 {[%clk 0:01:08]} 23. Nxe4 {[%clk 0:01:03]}  Qf8 {[%clk 0:00:40]} 24. Ng5 {[%clk 0:00:43]}  h6 {[%clk 0:00:38]} 25. Ne6 {[%clk 0:00:30]}  Bxe6 {[%clk 0:00:37]} 26. Rxe6 {[%clk 0:00:31]}  Nf6 {[%clk 0:00:36]} 27. f5 {[%clk 0:00:24]}  Qf7 {[%clk 0:00:35]} 28. Qf4 {[%clk 0:00:23]}  Kh7 {[%clk 0:00:28]} 29. Rce1 {[%clk 0:00:23]}  Rae8 {[%clk 0:00:26]} 30. Qe3 {[%clk 0:00:19]}  Ref8 {[%clk 0:00:18]} 31. Re7 {[%clk 0:00:16]}  Qh5 {[%clk 0:00:18]} 32. Qf4 {[%clk 0:00:14]}  Kh8 {[%clk 0:00:17]} 33. Rxc7 {[%clk 0:00:09]}  Qg5 {[%clk 0:00:16]} 34. Qxg5 {[%clk 0:00:09]}  hxg5 {[%clk 0:00:17]} 35. Ree7 {[%clk 0:00:09]}  g4 {[%clk 0:00:15]} 36. hxg4 {[%clk 0:00:10]}  Nxg4+ {[%clk 0:00:15]} 37. Kh3 {[%clk 0:00:10]}  Bxd4 {[%clk 0:00:15]} 38. Rh7# {[%clk 0:00:11]} 1-0


[Site "https://www.chess.com"]

[Event "Titled Tuesday Blitz November 08 Late 2022"]
[White "Burke, Paul"]
[Black "Manelyuk, Daniil"]
[WhiteFideId "2605767"]
[BlackFideId "44173920"]
[WhiteElo "1796"]
[BlackElo "2209"]
[Result "1-0"]
[Round "01"]
[TimeControl "180+1"]
[Date "2022.11.09"]
[WhiteClock "0:00:44"]
[BlackClock "0:00:02"]

1. e4 {[%clk 0:02:54]}  e6 {[%clk 0:02:59]} 2. d4 {[%clk 0:02:53]}  d5 {[%clk 0:02:58]} 3. e5 {[%clk 0:02:53]}  c5 {[%clk 0:02:58]} 4. Qg4 {[%clk 0:02:52]}  Nc6 {[%clk 0:02:57]} 5. Nf3 {[%clk 0:02:52]}  cxd4 {[%clk 0:02:57]} 6. Bd3 {[%clk 0:02:52]}  Qc7 {[%clk 0:02:57]} 7. O-O {[%clk 0:02:51]}  Nxe5 {[%clk 0:02:55]} 8. Nxe5 {[%clk 0:02:51]}  Qxe5 {[%clk 0:02:54]} 9. Bf4 {[%clk 0:02:51]}  Qf6 {[%clk 0:02:49]} 10. Bg5 {[%clk 0:02:51]}  Qe5 {[%clk 0:02:09]} 11. Bf4 {[%clk 0:02:50]}  Nf6 {[%clk 0:01:51]} 12. Qg3 {[%clk 0:02:36]}  Qh5 {[%clk 0:01:51]} 13. Bb5+ {[%clk 0:02:34]}  Bd7 {[%clk 0:01:50]} 14. Bxd7+ {[%clk 0:02:34]}  Kxd7 {[%clk 0:01:50]} 15. Qb3 {[%clk 0:02:12]}  b6 {[%clk 0:01:34]} 16. Qb5+ {[%clk 0:02:09]}  Kd8 {[%clk 0:01:34]} 17. Na3 {[%clk 0:01:50]}  Rc8 {[%clk 0:01:25]} 18. Qa6 {[%clk 0:01:45]}  e5 {[%clk 0:00:49]} 19. Bg3 {[%clk 0:01:37]}  Bxa3 {[%clk 0:00:22]} 20. Qxa3 {[%clk 0:01:26]}  Nd7 {[%clk 0:00:22]} 21. Qd6 {[%clk 0:01:21]}  Rc5 {[%clk 0:00:09]} 22. Rfe1 {[%clk 0:01:16]}  f6 {[%clk 0:00:08]} 23. b4 {[%clk 0:01:09]}  Rxc2 {[%clk 0:00:08]} 24. Qxd5 {[%clk 0:01:07]}  Ke7 {[%clk 0:00:09]} 25. Qxd4 {[%clk 0:01:02]}  Rd8 {[%clk 0:00:08]} 26. Rad1 {[%clk 0:01:01]}  Rc6 {[%clk 0:00:07]} 27. Qd5 {[%clk 0:00:57]}  Re6 {[%clk 0:00:07]} 28. f4 {[%clk 0:00:52]}  Qf5 {[%clk 0:00:03]} 29. fxe5 {[%clk 0:00:48]}  fxe5 {[%clk 0:00:04]} 30. Bh4+ {[%clk 0:00:45]}  Kf7 {[%clk 0:00:02]} 31. Rf1 {[%clk 0:00:45]}  Qxf1+ {[%clk 0:00:02]} 32. Rxf1+ {[%clk 0:00:44]} 1-0


[Site "https://www.chess.com"]

[Event "Titled Tuesday Blitz November 08 Late 2022"]
[White "Chernomordik, Pavel"]
[Black "Zakhartsov, Vladimir"]
[WhiteFideId "2804530"]
[BlackFideId "4145097"]
[WhiteElo "2192"]
[BlackElo "2525"]
[Result "0-1"]
[Round "01"]
[TimeControl "180+1"]
[Date "2022.11.09"]
[WhiteClock "0:00:19"]
[BlackClock "0:00:27"]

1. e4 {[%clk 0:02:59]}  c5 {[%clk 0:02:58]} 2. Nc3 {[%clk 0:02:58]}  Nc6 {[%clk 0:02:58]} 3. Bb5 {[%clk 0:02:57]}  Nd4 {[%clk 0:02:57]} 4. Bc4 {[%clk 0:02:57]}  g6 {[%clk 0:02:56]} 5. Nge2 {[%clk 0:02:56]}  Nc6 {[%clk 0:02:54]} 6. f4 {[%clk 0:02:53]}  Bg7 {[%clk 0:02:54]} 7. O-O {[%clk 0:02:52]}  e6 {[%clk 0:02:55]} 8. e5 {[%clk 0:02:52]}  d5 {[%clk 0:02:52]} 9. exd6 {[%clk 0:02:49]}  Qxd6 {[%clk 0:02:51]} 10. Ne4 {[%clk 0:02:49]}  Qe7 {[%clk 0:02:51]} 11. d3 {[%clk 0:02:46]}  Nf6 {[%clk 0:02:48]} 12. N2c3 {[%clk 0:02:46]}  O-O {[%clk 0:02:46]} 13. Re1 {[%clk 0:02:46]}  b6 {[%clk 0:02:37]} 14. Nxf6+ {[%clk 0:02:41]}  Qxf6 {[%clk 0:02:28]} 15. Ne4 {[%clk 0:02:39]}  Qd8 {[%clk 0:02:28]} 16. c3 {[%clk 0:02:37]}  Bb7 {[%clk 0:02:26]} 17. Be3 {[%clk 0:02:33]}  Ne7 {[%clk 0:02:25]} 18. Bf2 {[%clk 0:02:28]}  Nf5 {[%clk 0:02:22]} 19. a4 {[%clk 0:02:23]}  Qc7 {[%clk 0:02:16]} 20. Qc1 {[%clk 0:02:12]}  Nd6 {[%clk 0:02:06]} 21. Ba2 {[%clk 0:02:08]}  Qc6 {[%clk 0:02:03]} 22. Bh4 {[%clk 0:01:24]}  f5 {[%clk 0:01:50]} 23. Bxe6+ {[%clk 0:01:22]}  Kh8 {[%clk 0:01:49]} 24. Be7 {[%clk 0:01:15]}  Rfe8 {[%clk 0:01:44]} 25. Bxd6 {[%clk 0:01:05]}  Rxe6 {[%clk 0:01:43]} 26. Be5 {[%clk 0:01:03]}  Bxe5 {[%clk 0:01:38]} 27. fxe5 {[%clk 0:01:02]}  fxe4 {[%clk 0:01:30]} 28. Rxe4 {[%clk 0:00:53]}  Rxe5 {[%clk 0:01:30]} 29. Qf4 {[%clk 0:00:47]}  Rxe4 {[%clk 0:01:30]} 30. dxe4 {[%clk 0:00:47]}  Qxe4 {[%clk 0:01:30]} 31. Qf2 {[%clk 0:00:39]}  Qf5 {[%clk 0:01:07]} 32. Qg3 {[%clk 0:00:27]}  Re8 {[%clk 0:00:52]} 33. Rf1 {[%clk 0:00:26]}  Qd5 {[%clk 0:00:31]} 34. h3 {[%clk 0:00:21]}  Kg8 {[%clk 0:00:30]} 35. Kh2 {[%clk 0:00:19]}  Qe5 {[%clk 0:00:27]} 0-1


[Site "https://www.chess.com"]

[Event "Titled Tuesday Blitz November 08 Late 2022"]
[White "Chigaev, Maksim"]
[Black "Karas, Marek"]
[WhiteFideId "4108116"]
[BlackFideId "14928558"]
[WhiteElo "2541"]
[BlackElo "2220"]
[Result "1-0"]
[Round "01"]
[TimeControl "180+1"]
[Date "2022.11.08"]
[WhiteClock "0:00:58"]
[BlackClock "0:00:38"]

1. Nf3 {[%clk 0:02:58]}  Nf6 {[%clk 0:02:53]} 2. c4 {[%clk 0:02:58]}  e6 {[%clk 0:02:53]} 3. g3 {[%clk 0:02:58]}  b6 {[%clk 0:02:53]} 4. Bg2 {[%clk 0:02:59]}  Bb7 {[%clk 0:02:53]} 5. O-O {[%clk 0:03:00]}  Be7 {[%clk 0:02:54]} 6. Re1 {[%clk 0:03:00]}  O-O {[%clk 0:02:53]} 7. Nc3 {[%clk 0:03:01]}  d5 {[%clk 0:02:54]} 8. cxd5 {[%clk 0:03:00]}  Nxd5 {[%clk 0:02:55]} 9. e4 {[%clk 0:02:59]}  Nxc3 {[%clk 0:02:55]} 10. bxc3 {[%clk 0:03:00]}  c5 {[%clk 0:02:55]} 11. d4 {[%clk 0:03:01]}  cxd4 {[%clk 0:02:56]} 12. cxd4 {[%clk 0:03:02]}  Nd7 {[%clk 0:02:55]} 13. Bf4 {[%clk 0:02:54]}  Rc8 {[%clk 0:02:53]} 14. d5 {[%clk 0:02:48]}  exd5 {[%clk 0:02:52]} 15. exd5 {[%clk 0:02:49]}  Bf6 {[%clk 0:02:50]} 16. Rb1 {[%clk 0:02:43]}  Re8 {[%clk 0:02:49]} 17. Rxe8+ {[%clk 0:02:40]}  Qxe8 {[%clk 0:02:50]} 18. Nd4 {[%clk 0:02:39]}  Be5 {[%clk 0:02:39]} 19. Be3 {[%clk 0:02:21]}  g6 {[%clk 0:02:29]} 20. Nc6 {[%clk 0:02:18]}  Bxc6 {[%clk 0:02:22]} 21. dxc6 {[%clk 0:02:18]}  Nf8 {[%clk 0:02:19]} 22. Qa4 {[%clk 0:02:15]}  Rc7 {[%clk 0:02:13]} 23. Rd1 {[%clk 0:02:13]}  Kg7 {[%clk 0:02:04]} 24. h4 {[%clk 0:02:11]}  h5 {[%clk 0:02:02]} 25. Bd4 {[%clk 0:02:03]}  Bxd4 {[%clk 0:01:50]} 26. Qxd4+ {[%clk 0:02:02]}  Kg8 {[%clk 0:01:50]} 27. Bd5 {[%clk 0:01:41]}  Qe7 {[%clk 0:01:41]} 28. Kg2 {[%clk 0:01:39]}  Kh7 {[%clk 0:01:31]} 29. Rd3 {[%clk 0:01:30]}  Ne6 {[%clk 0:01:23]} 30. Qc4 {[%clk 0:01:20]}  Nc5 {[%clk 0:01:19]} 31. Rf3 {[%clk 0:01:18]}  f6 {[%clk 0:00:54]} 32. Qf4 {[%clk 0:01:11]}  Kg7 {[%clk 0:00:51]} 33. Re3 {[%clk 0:01:01]}  Qd8 {[%clk 0:00:50]} 34. Bf3 {[%clk 0:01:00]}  Nd3 {[%clk 0:00:38]} 35. Rxd3 {[%clk 0:00:58]} 1-0


[Site "https://www.chess.com"]

[Event "Titled Tuesday Blitz November 08 Late 2022"]
[White "Chong, Kai Ni Agnes"]
[Black "Bodi, Tibor"]
[WhiteFideId "5722071"]
[BlackFideId "701084"]
[WhiteElo "1762"]
[BlackElo "2187"]
[Result "0-1"]
[Round "01"]
[TimeControl "180+1"]
[Date "2022.11.09"]
[WhiteClock "0:00:02"]
[BlackClock "0:00:45"]

1. d4 {[%clk 0:02:59]}  Nf6 {[%clk 0:02:59]} 2. c4 {[%clk 0:02:58]}  e6 {[%clk 0:02:56]} 3. g3 {[%clk 0:02:57]}  c5 {[%clk 0:02:56]} 4. d5 {[%clk 0:02:56]}  exd5 {[%clk 0:02:56]} 5. cxd5 {[%clk 0:02:55]}  d6 {[%clk 0:02:57]} 6. Bg2 {[%clk 0:02:54]}  g6 {[%clk 0:02:58]} 7. Nf3 {[%clk 0:02:51]}  Bg7 {[%clk 0:02:57]} 8. Nc3 {[%clk 0:02:50]}  O-O {[%clk 0:02:58]} 9. O-O {[%clk 0:02:49]}  Re8 {[%clk 0:02:59]} 10. Nd2 {[%clk 0:02:28]}  a6 {[%clk 0:02:56]} 11. a4 {[%clk 0:02:27]}  Nbd7 {[%clk 0:02:55]} 12. e4 {[%clk 0:02:18]}  Ne5 {[%clk 0:02:52]} 13. Qc2 {[%clk 0:02:00]}  Nh5 {[%clk 0:02:36]} 14. b3 {[%clk 0:01:29]}  Rb8 {[%clk 0:02:20]} 15. Bb2 {[%clk 0:01:03]}  b5 {[%clk 0:02:19]} 16. axb5 {[%clk 0:01:02]}  axb5 {[%clk 0:02:20]} 17. h3 {[%clk 0:00:59]}  c4 {[%clk 0:02:09]} 18. bxc4 {[%clk 0:00:48]}  bxc4 {[%clk 0:02:10]} 19. Rfb1 {[%clk 0:00:28]}  Bh6 {[%clk 0:01:40]} 20. Ba3 {[%clk 0:00:24]}  Rxb1+ {[%clk 0:01:32]} 21. Rxb1 {[%clk 0:00:25]}  Bxd2 {[%clk 0:01:21]} 22. Qxd2 {[%clk 0:00:24]}  Bxh3 {[%clk 0:01:22]} 23. f4 {[%clk 0:00:17]}  Bxg2 {[%clk 0:01:21]} 24. Qxg2 {[%clk 0:00:16]}  Nd3 {[%clk 0:01:13]} 25. Nb5 {[%clk 0:00:15]}  Qb6+ {[%clk 0:00:58]} 26. Kh2 {[%clk 0:00:14]}  Nhxf4 {[%clk 0:00:52]} 27. gxf4 {[%clk 0:00:11]}  Nxf4 {[%clk 0:00:53]} 28. Qg3 {[%clk 0:00:11]}  Rxe4 {[%clk 0:00:50]} 29. Bxd6 {[%clk 0:00:04]}  Re2+ {[%clk 0:00:49]} 30. Kh1 {[%clk 0:00:02]}  Nd3 {[%clk 0:00:45]} 0-1


[Site "https://www.chess.com"]

[Event "Titled Tuesday Blitz November 08 Late 2022"]
[White "Dardha, Daniel"]
[Black "Goncalves, Davi Sulzbacher"]
[WhiteFideId "240990"]
[BlackFideId "2154510"]
[WhiteElo "2528"]
[BlackElo "2182"]
[Result "1-0"]
[Round "01"]
[TimeControl "180+1"]
[Date "2022.11.09"]
[WhiteClock "0:02:17"]
[BlackClock "0:00:41"]

1. e4 {[%clk 0:03:00]}  c5 {[%clk 0:02:59]} 2. a3 {[%clk 0:03:00]}  d5 {[%clk 0:02:57]} 3. exd5 {[%clk 0:03:00]}  Nf6 {[%clk 0:02:56]} 4. c4 {[%clk 0:02:55]}  e6 {[%clk 0:02:56]} 5. dxe6 {[%clk 0:02:56]}  Bxe6 {[%clk 0:02:56]} 6. Nf3 {[%clk 0:02:57]}  Qe7 {[%clk 0:02:53]} 7. Be2 {[%clk 0:02:50]}  Bxc4 {[%clk 0:02:53]} 8. d3 {[%clk 0:02:50]}  Bd5 {[%clk 0:02:48]} 9. O-O {[%clk 0:02:49]}  Nbd7 {[%clk 0:02:44]} 10. Nc3 {[%clk 0:02:48]}  Bc6 {[%clk 0:02:41]} 11. Re1 {[%clk 0:02:48]}  O-O-O {[%clk 0:02:36]} 12. d4 {[%clk 0:02:43]}  Nb6 {[%clk 0:02:22]} 13. Bf4 {[%clk 0:02:24]}  cxd4 {[%clk 0:02:13]} 14. Nb5 {[%clk 0:02:25]}  Nbd5 {[%clk 0:01:19]} 15. Nxa7+ {[%clk 0:02:23]}  Kd7 {[%clk 0:01:18]} 16. Ne5+ {[%clk 0:02:22]}  Ke8 {[%clk 0:01:08]} 17. Nexc6 {[%clk 0:02:23]}  bxc6 {[%clk 0:01:04]} 18. Nxc6 {[%clk 0:02:23]}  Qb7 {[%clk 0:00:41]} 19. Ba6+ {[%clk 0:02:17]} 1-0


[Site "https://www.chess.com"]

[Event "Titled Tuesday Blitz November 08 Late 2022"]
[White "Desideri, Ricardo Maruchi"]
[Black "Rodriguez Fontecha, Marcos"]
[WhiteFideId "2110440"]
[BlackFideId "2256576"]
[WhiteElo "1945"]
[BlackElo "2263"]
[Result "0-1"]
[Round "01"]
[TimeControl "180+1"]
[Date "2022.11.09"]
[WhiteClock "0:00:01"]
[BlackClock "0:00:36"]

1. e4 {[%clk 0:02:55]}  e6 {[%clk 0:02:59]} 2. d4 {[%clk 0:02:53]}  c5 {[%clk 0:02:59]} 3. Nf3 {[%clk 0:02:51]}  a6 {[%clk 0:02:57]} 4. Nc3 {[%clk 0:02:48]}  b5 {[%clk 0:02:57]} 5. Be3 {[%clk 0:02:37]}  Bb7 {[%clk 0:02:55]} 6. d5 {[%clk 0:02:32]}  b4 {[%clk 0:02:51]} 7. Na4 {[%clk 0:02:29]}  exd5 {[%clk 0:02:51]} 8. exd5 {[%clk 0:02:26]}  d6 {[%clk 0:02:51]} 9. c3 {[%clk 0:02:23]}  a5 {[%clk 0:02:46]} 10. c4 {[%clk 0:02:18]}  Nf6 {[%clk 0:02:45]} 11. b3 {[%clk 0:02:15]}  g6 {[%clk 0:02:44]} 12. Bd3 {[%clk 0:02:15]}  Bg7 {[%clk 0:02:44]} 13. h4 {[%clk 0:02:14]}  Ng4 {[%clk 0:02:43]} 14. Bg5 {[%clk 0:02:10]}  Qc7 {[%clk 0:02:42]} 15. Rc1 {[%clk 0:01:57]}  h6 {[%clk 0:02:40]} 16. Bf4 {[%clk 0:01:53]}  Nd7 {[%clk 0:02:38]} 17. h5 {[%clk 0:01:43]}  g5 {[%clk 0:02:38]} 18. Bg3 {[%clk 0:01:42]}  O-O-O {[%clk 0:02:35]} 19. O-O {[%clk 0:01:40]}  Nde5 {[%clk 0:02:23]} 20. Bf5+ {[%clk 0:01:39]}  Kb8 {[%clk 0:02:22]} 21. a3 {[%clk 0:01:19]}  Bc8 {[%clk 0:02:16]} 22. Bxg4 {[%clk 0:01:12]}  Bxg4 {[%clk 0:02:14]} 23. axb4 {[%clk 0:01:03]}  axb4 {[%clk 0:02:12]} 24. Bxe5 {[%clk 0:00:56]}  Bxe5 {[%clk 0:02:11]} 25. Qd3 {[%clk 0:00:53]}  Bxh5 {[%clk 0:02:07]} 26. Nxe5 {[%clk 0:00:47]}  dxe5 {[%clk 0:02:08]} 27. Ra1 {[%clk 0:00:45]}  Bg6 {[%clk 0:02:03]} 28. Qe3 {[%clk 0:00:43]}  Rc8 {[%clk 0:02:01]} 29. Ra2 {[%clk 0:00:41]}  f5 {[%clk 0:01:52]} 30. Rfa1 {[%clk 0:00:37]}  f4 {[%clk 0:01:52]} 31. Qe2 {[%clk 0:00:32]}  Qd6 {[%clk 0:01:48]} 32. Nb2 {[%clk 0:00:28]}  Kc7 {[%clk 0:01:38]} 33. Ra7+ {[%clk 0:00:26]}  Kd8 {[%clk 0:01:35]} 34. R1a6 {[%clk 0:00:26]}  Qb8 {[%clk 0:01:31]} 35. Rg7 {[%clk 0:00:16]}  Bf5 {[%clk 0:01:25]} 36. Na4 {[%clk 0:00:13]}  Rh7 {[%clk 0:01:10]} 37. Rg8+ {[%clk 0:00:12]}  Ke7 {[%clk 0:01:06]} 38. Rxc8 {[%clk 0:00:06]}  Bxc8 {[%clk 0:01:07]} 39. Rb6 {[%clk 0:00:04]}  Bb7 {[%clk 0:00:59]} 40. Rxb7+ {[%clk 0:00:02]}  Qxb7 {[%clk 0:00:58]} 41. Qxe5+ {[%clk 0:00:02]}  Kf7 {[%clk 0:00:50]} 42. Nxc5 {[%clk 0:00:02]}  Qe7 {[%clk 0:00:51]} 43. Qf5+ {[%clk 0:00:01]}  Kg8 {[%clk 0:00:50]} 44. Ne6 {[%clk 0:00:01]}  Qf7 {[%clk 0:00:44]} 45. Qe5 {[%clk 0:00:01]}  Qe8 {[%clk 0:00:39]} 46. Qd6 {[%clk 0:00:01]}  f3 {[%clk 0:00:36]} 0-1


[Site "https://www.chess.com"]

[Event "Titled Tuesday Blitz November 08 Late 2022"]
[White "Do Nascimento,Christian Almeida"]
[Black "Bortnyk, Mykola"]
[WhiteFideId "2143801"]
[BlackFideId "14120836"]
[WhiteElo "2079"]
[BlackElo "2582"]
[Result "0-1"]
[Round "01"]
[TimeControl "180+1"]
[Date "2022.11.08"]
[WhiteClock "0:02:10"]
[BlackClock "0:02:20"]

1. d4 {[%clk 0:02:50]}  d5 {[%clk 0:02:59]} 2. c4 {[%clk 0:02:46]}  c6 {[%clk 0:02:58]} 3. Nc3 {[%clk 0:02:47]}  Nf6 {[%clk 0:02:58]} 4. Nf3 {[%clk 0:02:47]}  Bf5 {[%clk 0:02:57]} 5. e3 {[%clk 0:02:46]}  e6 {[%clk 0:02:57]} 6. Qb3 {[%clk 0:02:44]}  Qb6 {[%clk 0:02:56]} 7. c5 {[%clk 0:02:45]}  Qc7 {[%clk 0:02:53]} 8. Be2 {[%clk 0:02:44]}  Nbd7 {[%clk 0:02:52]} 9. O-O {[%clk 0:02:44]}  b6 {[%clk 0:02:49]} 10. cxb6 {[%clk 0:02:41]}  axb6 {[%clk 0:02:50]} 11. Qd1 {[%clk 0:02:38]}  Bd6 {[%clk 0:02:49]} 12. h3 {[%clk 0:02:36]}  h6 {[%clk 0:02:48]} 13. Bd3 {[%clk 0:02:36]}  O-O {[%clk 0:02:48]} 14. Bxf5 {[%clk 0:02:32]}  exf5 {[%clk 0:02:49]} 15. Qc2 {[%clk 0:02:32]}  Ne4 {[%clk 0:02:47]} 16. Bd2 {[%clk 0:02:30]}  Rfe8 {[%clk 0:02:41]} 17. Rfc1 {[%clk 0:02:28]}  Rac8 {[%clk 0:02:34]} 18. Be1 {[%clk 0:02:26]}  Ndf6 {[%clk 0:02:34]} 19. Nd2 {[%clk 0:02:23]}  f4 {[%clk 0:02:32]} 20. Ndxe4 {[%clk 0:02:20]}  Nxe4 {[%clk 0:02:32]} 21. Nxe4 {[%clk 0:02:20]}  Rxe4 {[%clk 0:02:33]} 22. exf4 {[%clk 0:02:14]}  Bxf4 {[%clk 0:02:32]} 23. Rd1 {[%clk 0:02:12]}  Rce8 {[%clk 0:02:26]} 24. Bd2 {[%clk 0:02:10]}  Re2 {[%clk 0:02:20]} 25. Qd3 {[%clk 0:02:10]}  Bxd2 {[%clk 0:02:20]} 0-1


[Site "https://www.chess.com"]